bitfinex-derivatives/quotes_SOLF0:USTF0_20241011
["timestamp","ask_amount","ask_price","bid_price","bid_amount"]
[1728663635410,3.4707,144.09,144.05,3.4714]
[1728663635707,16.67,144.1,144.05,3.4714]
[1728663637311,3.4706,144.09,144.05,3.4714]
[1728663637511,16.67,144.1,144.05,3.4714]
[1728663637905,3.4706,144.09,144.05,3.4714]
[1728663638110,16.67,144.1,144.05,3.4714]
[1728663638818,3.4708,144.08,144.05,3.4714]
[1728663639209,16.67,144.1,144.03,5.8]
[1728663639509,16.67,144.08,144.03,5.78]
[1728663641314,3.4714,144.06,144.03,5.78]
[1728663642217,16.67,144.08,144.03,5.78]
[1728663642416,3.4715,144.05,144.03,5.78]
[1728663643613,0.12502,144.11,144.04,16.67]
[1728663643815,0.12502,144.11,144.06,16.67]
[1728663644019,0.12502,144.11,144.08,3.4706]
[1728663644215,0.12502,144.11,144.07,5.78]
[1728663644409,3.59522,144.11,144.07,5.78]
[1728663644718,3.59522,144.11,144.08,3.4707]
[1728663644915,0.12502,144.11,144.07,30.03761628]
[1728663646113,0.12502,144.11,144.1,3.4703]
[1728663646316,16.79502,144.17,144.09,16.67]
[1728663646921,16.79502,144.17,144.11,3.4699]
[1728663647122,16.79502,144.17,144.12,5.78]
[1728663647312,3.4693,144.15,144.12,5.78]
[1728663648022,3.4695,144.14,144.12,5.78]
[1728663648224,16.79502,144.17,144.12,5.78]
[1728663649418,3.4696,144.13,144.12,5.78]
[1728663651328,3.4702,144.11,144.08,3.4707]
[1728663651517,3.4702,144.11,144.09,5.78]
[1728663651721,16.67,144.15,144.09,5.78]
[1728663653421,3.4699,144.12,144.09,9.2505]
[1728663653621,16.67,144.15,144.09,5.78]
[1728663654923,3.4701,144.11,144.09,5.78]
[1728663655323,16.67,144.15,144.09,5.78]
[1728663655718,3.4703,144.1,144.09,5.78]
[1728663656623,16.67,144.13,144.05,0.12502]
[1728663656828,16.67,144.13,144.06,5.78]
[1728663656829,3.4708,144.09,144.06,5.78]
[1728663657023,3.4708,144.09,144.06,9.2511]
[1728663657726,3.4708,144.08,144.05,3.59642]
[1728663658027,3.4708,144.08,144.06,5.78]
[1728663659126,16.67,144.12,144.06,2.3088]
[1728663659628,3.4712,144.06,144.05,5.90502]
[1728663661328,3.4712,144.06,144.05,0.12502]
[1728663662836,3.4725,144.01,143.99,5.90502]
[1728663664041,3.4723,144.02,143.99,5.90502]
[1728663664231,16.67,144.06,143.99,5.90502]
[1728663664427,3.4727,144.0,143.99,0.12502]
[1728663666441,16.67,144.04,143.99,0.12502]
[1728663666733,17.9753,144.06,143.99,0.12502]
[1728663666934,17.9753,144.06,144.0,3.4725]
[1728663666935,1.3053,144.06,144.0,3.4725]
[1728663667236,3.4721,144.03,144.0,3.4725]
[1728663673034,3.4724,144.02,143.99,3.59782]
[1728663673239,17.9753,144.06,143.99,0.12502]
[1728663673639,3.4723,144.02,143.99,3.59792]
[1728663673940,17.9753,144.06,143.99,0.12502]
[1728663674438,3.4718,144.04,144.01,3.4724]
[1728663674633,22.43,144.08,144.01,5.76]
[1728663674830,3.4715,144.05,144.02,3.4721]
[1728663676938,80.55909014,144.11,144.02,16.67]
[1728663677239,80.55909014,144.11,144.03,16.67]
[1728663677442,16.67,144.1,144.04,3.4716]
[1728663677740,3.4712,144.07,144.05,5.76]
[1728663678041,16.67,144.1,144.05,5.76]
[1728663678938,3.4712,144.07,144.05,5.76]
[1728663680043,16.67,144.09,144.05,5.76]
[1728663680230,16.67,144.09,144.0,16.67]
[1728663680231,16.67,144.09,144.01,3.4723]
[1728663680435,16.67,144.09,144.02,5.76]
[1728663682546,3.4716,144.05,144.02,5.76]
[1728663683449,3.4716,144.05,144.02,9.2322]
[1728663686338,3.4716,144.05,144.02,5.76]
[1728663686941,3.4716,144.05,144.02,9.2322]
[1728663688345,3.4719,144.04,144.02,5.76]
[1728663690053,7.57609712,144.11,144.03,10.66]
[1728663690252,3.4709,144.08,144.06,10.66]
[1728663690752,10.66,144.07,144.02,16.42]
[1728663690946,10.66,144.07,144.02,5.76]
[1728663691550,10.66,144.07,144.02,9.2321]
[1728663692155,3.4716,144.05,144.02,9.2321]
[1728663693255,3.4717,144.04,144.02,9.2321]
[1728663693757,16.66,144.08,144.02,9.2321]
[1728663693952,3.4717,144.05,144.02,9.2321]
[1728663694662,16.66,144.08,144.02,5.76]
[1728663694957,3.472,144.03,144.02,5.76]
[1728663695159,16.66,144.08,144.02,5.76]
[1728663695557,3.4718,144.04,144.02,5.76]
[1728663696961,3.4716,144.05,144.02,9.232]
[1728663698265,3.4717,144.04,144.02,5.76]
[1728663698473,16.66,144.08,144.02,5.76]
[1728663698858,3.472,144.03,144.02,5.76]
[1728663702369,16.66,144.06,143.99,0.12502]
[1728663702669,3.4724,144.02,144.0,5.76]
[1728663706371,16.66,144.06,144.0,5.76]
[1728663707168,16.66,144.03,143.99,0.12502]
[1728663707581,3.4727,144.0,143.99,0.12502]
[1728663715377,3.4725,144.01,143.99,10.79502]
[1728663715978,10.67,144.04,143.99,14.26782]
[1728663715979,3.4723,144.02,143.99,14.26782]
[1728663716781,3.4723,144.02,143.99,3.59782]
[1728663717681,1.3961,144.05,144.0,10.67]
[1728663717886,76.41226923,144.07,144.04,10.67]
[1728663718083,1.322,144.1,144.04,10.67]
[1728663718084,345.67,144.09,144.04,10.67]
[1728663718388,10.67,144.09,144.05,10.67]
[1728663718985,3.4711,144.07,144.05,10.67]
[1728663719188,3.4711,144.07,144.03,10.67]
[1728663720184,10.67,144.09,144.05,10.67]
[1728663720491,12.18672,144.11,144.07,10.67]
[1728663720685,0.12502,144.11,144.07,10.67]
[1728663720990,3.4704,144.1,144.07,10.67]
[1728663721488,3.4704,144.1,144.08,10.67]
[1728663722481,3.4704,144.1,144.07,3.471]
[1728663722482,3.4704,144.1,144.07,14.141]
[1728663722679,3.4704,144.1,144.06,9.2312]
[1728663723293,16.77502,144.11,144.06,5.76]
[1728663723794,3.4704,144.1,144.06,5.76]
[1728663724004,16.77502,144.11,144.06,5.76]
[1728663725390,3.4709,144.08,144.06,5.76]
[1728663726295,3.4711,144.07,144.04,3.4715]
[1728663726498,3.4711,144.07,144.05,5.74]
[1728663728691,3.4711,144.07,144.05,9.2114]
[1728663730195,16.77502,144.11,144.05,9.2114]
[1728663730398,3.4711,144.07,144.05,9.2114]
[1728663731596,16.77502,144.11,144.05,5.74]
[1728663731794,3.4706,144.09,144.07,3.4709]
[1728663732393,3.4706,144.09,144.05,5.74]
[1728663732394,0.12502,144.11,144.06,20.1052616]
[1728663732600,3.59512,144.11,144.09,3.4705]
[1728663732795,3.59512,144.11,144.09,5.74]
[1728663732796,0.12502,144.11,144.09,5.74]
[1728663733197,3.59522,144.11,144.09,5.74]
[1728663733397,0.12502,144.11,144.09,5.74]
[1728663734401,16.77502,144.11,144.05,1.3415]
[1728663734605,16.77502,144.11,144.06,10.8499985]
[1728663734806,16.77502,144.11,144.07,5.1099985]
[1728663735101,3.471,144.07,144.06,5.74]
[1728663735304,3.471,144.07,144.06,10.85189133]
[1728663737605,3.4709,144.08,144.06,5.74]
[1728663737818,0.12502,144.11,144.06,5.74]
[1728663738103,0.12502,144.11,144.07,5.11216518]
[1728663738303,3.4704,144.1,144.07,3.4709]
[1728663739208,3.59522,144.11,144.08,8.5810004]
[1728663739411,0.12502,144.11,144.07,16.65]
[1728663739610,0.12502,144.11,144.08,5.1096459]
[1728663739808,0.12502,144.11,144.1,3.4703]
[1728663740108,0.12502,144.11,144.1,5.1096459]
[1728663741305,3.59502,144.11,144.1,5.1096459]
[1728663742510,0.12502,144.11,144.1,5.1096459]
[1728663743210,0.12502,144.11,144.09,3.4705]
[1728663743508,0.12502,144.11,144.1,5.10308332]
[1728663744208,0.12502,144.11,144.09,3.4705]
[1728663744414,0.12502,144.11,144.1,5.10314289]
[1728663744606,0.12502,144.11,144.09,14.1405]
[1728663744805,3.59512,144.11,144.09,10.67]
[1728663745504,0.12502,144.11,144.06,10.58984519]
[1728663745813,10.67,144.1,144.07,10.8422408]
[1728663746111,10.67,144.1,144.07,5.74]
[1728663746512,0.12502,144.11,144.07,5.74]
[1728663746714,3.4708,144.08,144.07,5.74]
[1728663746908,3.4708,144.08,144.07,10.84617439]
[1728663747910,0.12502,144.11,144.07,10.84617439]
[1728663748206,3.4706,144.09,144.07,5.74]
[1728663749909,0.12502,144.11,144.07,5.74]
[1728663750114,3.4713,144.06,144.04,5.74]
[1728663750307,3.4713,144.06,144.05,5.10932371]
[1728663751019,3.4725,144.01,143.95,16.65]
[1728663751313,3.4725,144.01,143.98,3.4731]
[1728663751614,3.4725,144.01,144.0,5.11076372]
[1728663754420,3.4725,144.01,144.0,5.11014935]
[1728663755212,16.65,144.04,144.0,5.11014935]
[1728663755416,3.4719,144.04,144.01,8.58254935]
[1728663755716,3.4719,144.04,144.01,3.4724]
[1728663756513,3.4719,144.04,144.0,5.74]
[1728663756717,3.4719,144.04,144.01,5.10970759]
[1728663756912,3.4719,144.04,144.0,9.2126]
[1728663757107,3.4719,144.04,144.01,5.10970759]
[1728663757317,3.4719,144.04,144.0,9.2126]
[1728663757517,3.472,144.03,144.01,5.10952716]
[1728663757718,3.472,144.03,144.0,9.2126]
[1728663757919,3.472,144.03,144.01,5.10952669]
[1728663758117,3.472,144.03,144.0,9.2126]
[1728663758317,3.472,144.03,144.01,5.1090952]
[1728663758517,3.472,144.03,144.02,5.1090952]
[1728663759012,3.472,144.03,144.02,5.10909511]
[1728663760221,3.472,144.03,144.0,9.2127]
[1728663760515,3.472,144.03,144.01,5.10887956]
[1728663760715,16.65,144.05,144.0,5.74]
[1728663760918,3.4722,144.02,144.01,5.10916636]
[1728663761116,3.4722,144.02,144.0,5.74]
[1728663761322,3.4722,144.02,144.01,5.10890852]
[1728663764226,3.4721,144.03,144.01,5.10890852]
[1728663764417,3.4721,144.03,144.0,9.2126]
[1728663764623,3.4721,144.03,144.01,5.10834283]
[1728663764922,3.4721,144.03,144.0,9.2126]
[1728663765125,3.4721,144.03,144.01,5.10834283]
[1728663765325,3.4721,144.03,144.0,9.2126]
[1728663766029,3.4721,144.03,144.01,5.10823358]
[1728663766222,3.4721,144.03,144.0,9.2126]
[1728663766423,3.4716,144.05,144.02,3.4722]
[1728663766623,20.6905,144.1,144.01,16.65]
[1728663766820,20.6905,144.1,144.02,6.415421]
[1728663767121,3.4711,144.07,144.03,5.107221]
[1728663767316,3.4711,144.07,144.02,1.3082]
[1728663767521,4.0405,144.1,144.03,21.75700047]
[1728663767725,3.471,144.08,144.04,10.84700047]
[1728663768028,3.471,144.08,144.05,5.10700047]
[1728663768228,3.471,144.08,144.04,9.2115]
[1728663768430,3.471,144.08,144.05,15.76659514]
[1728663768628,3.471,144.08,144.05,10.66]
[1728663769326,3.471,144.07,144.05,10.66]
[1728663770124,3.4715,144.05,144.04,5.74]
[1728663770331,14.1315,144.05,144.04,5.74]
[1728663770527,16.67,144.07,144.02,1.3082]
[1728663770723,3.4718,144.04,144.03,5.1072591]
[1728663771227,16.67,144.07,144.02,1.3082]
[1728663771421,3.4716,144.05,144.03,5.10725883]
[1728663771620,3.4716,144.05,144.02,4.7804]
[1728663771820,3.4716,144.05,144.03,5.10736889]
[1728663772030,3.4716,144.05,144.02,4.7804]
[1728663772234,3.4716,144.05,144.03,5.10736889]
[1728663772531,3.4716,144.05,144.02,4.7804]
[1728663772732,3.4716,144.05,144.03,5.10744691]
[1728663772921,3.4716,144.05,144.02,4.7804]
[1728663773121,3.4716,144.05,144.03,5.10747967]
[1728663773320,3.4716,144.05,144.02,4.7804]
[1728663773524,3.4716,144.05,144.03,5.10719871]
[1728663773723,16.67,144.09,144.02,1.3082]
[1728663773930,3.4711,144.07,144.04,3.4716]
[1728663774826,20.7105,144.1,144.04,3.4716]
[1728663775026,3.4713,144.06,144.03,3.4719]
[1728663775222,16.67,144.08,144.04,5.10679307]
[1728663775432,3.4727,144.0,143.99,0.12502]
[1728663775636,3.4727,144.0,143.91,4.042]
[1728663775637,16.67,144.0,143.92,9.2145]
[1728663775834,16.67,143.98,143.91,4.042]
[1728663776133,3.4738,143.96,143.92,9.2146]
[1728663776936,16.67,143.98,143.92,5.74]
[1728663778430,3.4738,143.96,143.92,9.2146]
[1728663778632,5.74,144.03,143.92,5.74]
[1728663778835,16.67,144.02,143.92,22.41]
[1728663779039,3.4732,143.98,143.94,3.4741]
[1728663779338,3.4732,143.98,143.92,22.41]
[1728663780134,3.4732,143.98,143.95,3.4739]
[1728663780337,3.4732,143.98,143.96,5.74]
[1728663781840,16.67,143.98,143.92,5.74]
[1728663782436,3.474,143.95,143.92,5.74]
[1728663783538,3.474,143.95,143.92,9.2145]
[1728663786841,16.67,143.98,143.91,4.042]
[1728663787045,16.67,143.98,143.93,5.84502]
[1728663787046,3.4741,143.94,143.93,5.84502]
[1728663790849,16.67,143.98,143.93,5.84502]
[1728663791151,3.474,143.95,143.93,5.84502]
[1728663794846,16.67,144.01,143.93,5.84502]
[1728663795049,16.67,144.01,143.93,22.51502]
[1728663795451,3.473,143.99,143.96,3.4735]
[1728663798852,3.4732,143.98,143.96,3.4735]
[1728663799057,16.67,144.01,143.96,3.4735]
[1728663799359,16.67,144.01,143.97,5.72]
[1728663799652,3.4731,143.99,143.97,5.72]
[1728663802163,3.4728,144.0,143.97,9.1934]
[1728663802363,16.67,144.01,143.97,9.1934]
[1728663803566,3.4729,143.99,143.97,9.1934]
[1728663805765,3.4729,143.99,143.97,5.72]
[1728663807066,16.67,144.03,143.97,5.72]
[1728663808470,3.4732,143.98,143.97,5.72]
[1728663813278,10.67,143.98,143.94,5.72]
[1728663813479,10.67,143.97,143.94,5.72]
[1728663814184,3.4738,143.96,143.94,9.1941]
[1728663814780,3.4735,143.97,143.94,19.8641]
[1728663814980,3.4735,143.97,143.95,3.4738]
[1728663815385,3.4731,143.99,143.96,10.67]
[1728663815580,3.4731,143.99,143.97,3.4734]
[1728663815878,3.4731,143.99,143.96,10.67]
[1728663816380,3.4731,143.99,143.96,14.1435]
[1728663817385,3.4731,143.99,143.97,3.4734]
[1728663818384,3.4723,144.02,143.99,3.4728]
[1728663818582,10.67,144.03,143.99,10.67]
[1728663818777,10.67,144.02,143.98,5.72]
[1728663819087,10.67,144.0,143.98,5.72]
[1728663820385,3.4729,143.99,143.98,5.72]
[1728663820582,4.92967147,144.04,143.98,5.72]
[1728663820881,10.67,144.01,143.98,5.72]
[1728663821089,3.4728,144.0,143.98,5.72]
[1728663821279,10.67,144.02,143.98,16.39]
[1728663823487,3.4725,144.01,143.98,19.863]
[1728663825182,3.4725,144.01,143.98,16.39]
[1728663825384,14.1423,144.02,143.99,3.4729]
[1728663825682,3.4723,144.02,143.99,14.1429]
[1728663826890,3.4723,144.02,143.99,10.67]
[1728663827189,3.4723,144.02,144.0,3.4727]
[1728663827384,14.1419,144.04,144.0,10.67]
[1728663827584,10.67,144.04,144.0,14.1426]
[1728663827777,10.67,144.04,144.0,3.4726]
[1728663828985,3.4721,144.03,143.98,9.13585651]
[1728663829178,3.4721,144.03,144.01,14.1424]
[1728663829787,0.12502,144.05,144.02,16.39]
[1728663830085,0.12502,144.05,144.04,14.1417]
[1728663830490,0.12502,144.05,144.04,19.34449766]
[1728663831088,0.12502,144.05,144.04,19.34385868]
[1728663832494,0.12502,144.05,144.04,14.1417]
[1728663832688,0.12502,144.05,144.04,19.34195657]
[1728663833588,0.12502,144.05,144.04,5.20025657]
[1728663834182,0.12502,144.05,144.03,3.4718]
[1728663834693,3.59652,144.05,144.03,14.1418]
[1728663834889,3.59652,144.05,144.04,5.19915173]
[1728663835089,0.12502,144.05,144.04,8.67085173]
[1728663836196,0.12502,144.05,144.04,3.4717]
[1728663836397,0.12502,144.05,144.04,8.66975032]
[1728663837199,0.12502,144.05,144.04,3.4717]
[1728663837402,0.12502,144.05,144.04,8.6695355]
[1728663837899,3.59652,144.05,144.04,5.1978355]
[1728663838201,3.59652,144.05,144.03,5.72]
[1728663838799,3.59652,144.05,144.03,16.39]
[1728663839099,0.12502,144.05,144.04,10.67]
[1728663839597,3.59662,144.05,144.03,9.1919]
[1728663839901,3.59662,144.05,144.02,10.67]
[1728663840097,3.4718,144.04,144.03,10.92144942]
[1728663840505,0.12502,144.05,144.03,10.92144942]
[1728663840799,0.12502,144.05,144.04,10.67]
[1728663842001,0.12502,144.05,144.04,14.1417]
[1728663842198,3.4709,144.08,144.04,10.67]
[1728663842399,3.4709,144.08,144.07,10.67]
[1728663843095,3.4704,144.1,144.07,10.67]
[1728663843298,0.12502,144.11,144.1,10.67]
[1728663843705,3.4704,144.1,144.08,10.67]
[1728663844000,3.4704,144.1,144.07,19.8609]
[1728663844506,2.84744,144.0,143.99,0.12502]
[1728663844702,13.51744,144.0,143.99,0.12502]
[1728663845294,2.84744,144.0,143.99,0.12502]
[1728663850904,16.68,144.05,143.99,0.12502]
[1728663851209,3.4725,144.01,143.99,0.12502]
[1728663851403,16.68,144.05,143.99,0.12502]
[1728663851608,3.4724,144.02,143.99,0.12502]
[1728663852105,16.68,144.05,143.99,0.12502]
[1728663852299,3.4727,144.0,143.99,0.12502]
[1728663853807,20.1527,144.0,143.99,0.12502]
[1728663855008,3.4739,143.96,143.94,5.7]
[1728663858411,18.0529,144.02,143.94,5.7]
[1728663858715,3.4735,143.97,143.94,9.1741]
[1728663859420,1.3729,144.02,143.94,22.38]
[1728663860007,3.4731,143.99,143.94,22.38]
[1728663860718,3.4731,143.99,143.95,3.4737]
[1728663861718,1.3729,144.02,143.95,3.4737]
[1728663861910,3.4732,143.98,143.95,3.4737]
[1728663862512,3.4728,144.0,143.97,3.4734]
[1728663862707,3.4728,144.0,143.94,22.38]
[1728663862708,22.38,144.04,143.98,5.7]
[1728663863111,3.4722,144.03,143.98,5.7]
[1728663863316,22.38,144.04,143.98,5.7]
[1728663863818,3.4722,144.03,143.98,5.7]
[1728663864019,22.38,144.04,143.98,5.7]
[1728663864616,3.4729,143.99,143.98,5.7]
[1728663867820,22.38,144.04,143.98,5.7]
[1728663868023,3.4728,144.0,143.98,5.7]
[1728663868222,22.38,144.04,143.98,5.7]
[1728663868409,3.4726,144.01,143.98,5.7]
[1728663868618,22.38,144.04,143.98,5.7]
[1728663869424,3.4728,144.0,143.98,5.7]
[1728663871625,3.4723,144.02,143.99,3.4728]
[1728663874824,3.4721,144.03,144.0,3.44315776]
[1728663875023,3.4721,144.03,143.99,2.6674]
[1728663875225,3.4721,144.03,144.01,3.4724]
[1728663875826,3.4721,144.03,144.0,6.88936543]
[1728663876127,3.4723,144.02,144.0,6.88936543]
[1728663876523,16.80502,144.05,143.99,2.6674]
[1728663876720,3.4725,144.01,143.99,6.1402]
[1728663877925,3.4725,144.01,143.99,16.8102]
[1728663878925,10.67,144.03,143.99,16.8102]
[1728663879225,3.4723,144.02,143.99,16.8102]
[1728663879930,3.4723,144.02,143.99,13.3374]
[1728663880227,3.4723,144.02,144.0,3.4726]
[1728663880627,10.67,144.03,144.0,3.4726]
[1728663880628,10.79502,144.05,144.0,10.67]
[1728663880830,3.4721,144.03,144.01,3.4724]
[1728663881129,0.12502,144.05,144.02,16.37]
[1728663881829,0.12502,144.05,144.03,3.4718]
[1728663883130,0.12502,144.05,144.02,16.37]
[1728663883328,0.12502,144.05,144.04,3.4717]
[1728663883630,0.12502,144.05,144.04,14.1417]
[1728663883926,0.12502,144.05,144.02,5.7]
[1728663884430,3.59652,144.05,144.02,9.172]
[1728663884726,0.12502,144.05,143.99,4.0653]
[1728663884931,3.4724,144.02,144.0,5.7]
[1728663885131,10.67,144.03,144.0,5.7]
[1728663885635,3.4722,144.02,144.0,9.1727]
[1728663887336,0.12502,144.05,144.0,16.37]
[1728663887535,3.4718,144.04,144.0,19.91282355]
[1728663887731,0.12502,144.05,144.0,19.91282355]
[1728663888032,3.4719,144.04,144.02,14.1422]
[1728663889833,3.4719,144.04,144.02,3.4722]
[1728663891431,3.59662,144.05,144.02,3.4722]
[1728663892141,14.26662,144.05,144.02,3.4722]
[1728663899752,0.12502,144.05,144.02,10.67]
[1728663900050,0.12502,144.05,144.03,3.4718]
[1728663901452,3.59652,144.05,144.03,3.4718]
[1728663901653,0.12502,144.05,144.03,3.4718]
[1728663901844,0.12502,144.05,144.04,5.7]
[1728663902047,0.12502,144.05,144.04,19.8417]
[1728663902453,0.12502,144.05,144.04,9.1717]
[1728663903453,14.26652,144.05,144.04,5.7]
[1728663904854,0.12502,144.05,144.04,5.7]
[1728663905155,0.12502,144.05,144.04,16.37]
[1728663905453,0.12502,144.05,144.04,19.8417]
[1728663905955,0.12502,144.11,144.04,16.37]
[1728663906157,10.67,144.1,144.06,10.67]
[1728663906350,10.67,144.09,144.05,10.67]
[1728663907058,0.12502,144.11,144.07,10.67]
[1728663907458,3.4707,144.09,144.07,10.67]
[1728663907653,10.67,144.08,144.05,1.3327]
[1728663907859,10.67,144.06,144.02,5.7]
[1728663908054,10.67,144.04,144.01,1.3327]
[1728663908259,10.67,144.04,144.01,7.0327]
[1728663908658,3.4721,144.03,144.01,7.0327]
[1728663910665,3.9205,144.1,144.01,17.7027]
[1728663910865,3.4718,144.04,144.02,3.4722]
[1728663911065,10.67,144.09,144.03,10.67]
[1728663911262,3.4706,144.09,144.05,10.67]
[1728663911462,12.0668,144.1,144.05,16.35]
[1728663911866,3.4711,144.07,144.05,16.35]
[1728663914169,10.67,144.09,144.01,1.3327]
[1728663914369,10.67,144.08,144.03,10.67]
[1728663914670,10.67,144.08,144.02,5.68]
[1728663914671,10.67,144.1,144.05,10.67]
[1728663915065,3.4709,144.08,144.06,5.68]
[1728663915371,10.67,144.1,144.06,5.68]
[1728663915573,10.79502,144.11,144.06,16.35]
[1728663915772,3.4707,144.09,144.06,19.8212]
[1728663915977,0.12502,144.11,144.07,10.67]
[1728663916470,0.12502,144.11,144.01,76.3127]
[1728663916471,10.67,144.08,144.01,76.3127]
[1728663916668,10.67,144.08,144.03,10.67]
[1728663916972,10.67,144.08,144.04,5.26936964]
[1728663917165,10.67,144.08,144.03,10.67]
[1728663917370,3.4712,144.07,144.04,5.26965054]
[1728663917673,10.79502,144.11,144.06,10.67]
[1728663917881,10.79502,144.11,144.06,16.35]
[1728663918368,10.67,144.1,144.06,5.68]
[1728663918570,3.4706,144.09,144.06,5.68]
[1728663918770,10.67,144.1,144.06,5.68]
[1728663918974,0.12502,144.11,144.06,5.68]
[1728663919177,10.67,144.1,144.07,5.26717849]
[1728663919376,3.4709,144.08,144.06,5.68]
[1728663919672,3.4709,144.08,144.06,16.35]
[1728663919973,3.4706,144.09,144.07,5.2673315]
[1728663920172,3.4706,144.09,144.06,19.8212]
[1728663920374,3.4706,144.09,144.07,5.26704361]
[1728663920676,3.4706,144.09,144.06,19.8212]
[1728663920876,3.4706,144.09,144.07,5.26737635]
[1728663921066,3.4706,144.09,144.06,16.35]
[1728663921571,3.4706,144.09,144.07,5.26654544]
[1728663921769,3.4706,144.09,144.06,16.35]
[1728663921770,3.4706,144.09,144.06,19.8212]
[1728663921963,3.4706,144.09,144.07,5.26663862]
[1728663922163,3.4706,144.09,144.06,19.8212]
[1728663922369,3.4706,144.09,144.07,5.26630799]
[1728663922572,3.4706,144.09,144.06,19.8212]
[1728663922870,3.4704,144.1,144.07,19.40709976]
[1728663923072,3.4704,144.1,144.07,14.141]
[1728663923272,3.4704,144.1,144.08,5.26540015]
[1728663923577,3.4704,144.1,144.07,14.141]
[1728663923769,3.4704,144.1,144.08,5.26567842]
[1728663924063,3.4704,144.1,144.07,14.141]
[1728663924268,3.4704,144.1,144.08,5.26603965]
[1728663924472,3.4704,144.1,144.07,14.141]
[1728663924673,3.4704,144.1,144.08,5.26621701]
[1728663924973,3.59512,144.11,144.09,10.67]
[1728663925178,0.12502,144.11,144.1,16.35]
[1728663925475,0.12502,144.11,144.1,19.74151068]
[1728663926076,0.12502,144.11,144.1,23.21181068]
[1728663926379,0.12502,144.11,144.1,12.54181068]
[1728663926676,3.4695,144.14,144.11,3.47]
[1728663927180,16.67,144.18,144.1,9.07151068]
[1728663927373,3.4697,144.13,144.1,12.54171068]
[1728663927981,3.4693,144.15,144.11,20.1399]
[1728663928175,18.0079,144.2,144.11,16.67]
[1728663928671,18.0079,144.2,144.1,9.07151068]
[1728663928672,16.67,144.18,144.1,9.07151068]
[1728663930379,16.67,144.18,144.1,12.54171068]
[1728663930880,3.4696,144.13,144.1,12.54171068]
[1728663931683,3.4696,144.13,144.1,9.07151068]
[1728663933486,3.47,144.12,144.1,9.07151068]
[1728663933688,16.79502,144.17,144.11,5.68]
[1728663934391,3.4698,144.12,144.11,5.68]
[1728663936189,16.67,144.16,144.11,2.2099]
[1728663936787,3.4698,144.12,144.11,2.2099]
[1728663937085,0.12502,144.17,144.11,2.2099]
[1728663937589,16.67,144.16,144.11,2.2099]
[1728663938389,3.4698,144.12,144.11,2.2099]
[1728663943402,16.67,144.14,144.08,2.2092]
[1728663944292,3.4705,144.09,144.08,2.2092]
[1728663944497,3.4705,144.09,144.08,7.47591933]
[1728663945306,3.4705,144.09,144.08,5.26671933]
[1728663948006,3.4705,144.09,144.07,16.34]
[1728663948208,3.4705,144.09,144.08,5.26771621]
[1728663949106,1.3544,144.15,144.08,19.3415434]
[1728663949299,1.3544,144.15,144.11,10.66]
[1728663950007,3.4699,144.12,144.11,10.66]
[1728663952415,3.4699,144.12,144.1,10.66]